fUST/lending_fUST_20251127
["ID","MTS","AMOUNT","RATE_DAILY","PERIOD"]
[394966240,1764222670860,500.0,0.00010959,30]
[394966241,1764222671351,500.0,0.00010959,30]
[394966242,1764222671800,500.0,0.00010959,30]
[394966243,1764222672261,587.22199909,0.00010959,30]
[394966244,1764222681390,500.0,7.098e-05,2]
[394966245,1764222681807,500.0,7.098e-05,2]
[394966246,1764222682135,234.41677645,7.098e-05,2]
[394966267,1764222702762,183.98059836,6.959e-05,2]
[394966268,1764222702883,187.274,6.959e-05,2]
[394966321,1764222743508,150.0,0.00017904,30]
[394966322,1764222743916,150.0,0.00018756,30]
[394966323,1764222744305,150.0,0.00019609,30]
[394966328,1764222890642,150.0,0.00018232,30]
[394966329,1764222891042,150.0,0.000191,30]
[394966330,1764222891510,150.0,0.00019968,30]
[394966331,1764222956136,300.0,6.956e-05,2]
[394966332,1764222965256,150.0,0.00019061,30]
[394966333,1764222965678,150.0,0.00019969,30]
[394966335,1764223052870,300.0,0.0002,30]
[394966336,1764223071326,300.0,0.0002,30]
[394966337,1764223102234,403.2,0.0002,30]
[394966406,1764223245239,150.0,0.0001777,30]
[394966407,1764223246080,150.0,0.00018616,30]
[394966408,1764223246479,150.0,0.00019462,30]
[394966409,1764223302710,235.155,6.959e-05,2]
[394966410,1764223368713,9093.59040164,6.998e-05,2]
[394966416,1764223603935,150.0,0.00016574,30]
[394966417,1764223610448,150.0,0.00017364,30]
[394966418,1764223610843,150.0,0.00018153,30]
[394966419,1764223611237,150.0,0.00018942,30]
[394966420,1764223611677,150.0,0.00019731,30]
[394966421,1764223681933,150.0,9.922e-05,30]
[394966422,1764223682326,150.0,0.00010394,30]
[394966423,1764223682744,150.0,0.00010866,30]
[394966438,1764223752043,150.0,9.201e-05,30]
[394966439,1764223820443,150.0,0.00017368,30]
[394966544,1764223832536,-300.0,6.994e-05,2]
[394966546,1764223832546,-210.0,6.995e-05,2]
[394966548,1764223832555,-302.61568271,6.995e-05,2]
[394966550,1764223832564,-500.0,6.996e-05,2]
[394966552,1764223832573,-633.5894988,6.998e-05,2]
[394966646,1764223837965,-500.0,6.994e-05,2]
[394966647,1764223837975,-500.0,6.994e-05,2]
[394966648,1764223837986,-236.49879131,6.994e-05,2]
[394966649,1764223837996,-435.8689375,6.998e-05,2]
[394966650,1764223838011,-6212.50143022,6.998e-05,2]
[394966651,1764223838080,-7448.14153722,6.998e-05,2]
[394966726,1764223840206,-416.35171708,6.998e-05,2]
[394966984,1764223844845,-14566.67447881,6.998e-05,2]
[394966993,1764223947118,-851193.28199873,6.998e-05,2]
[394966994,1764223947138,-52296.8492494,7.098e-05,2]
[394966995,1764223947159,-2615.0170759,7.098e-05,2]
[394966996,1764223947174,-164.02622574,7.418e-05,2]
[394966997,1764223947192,-300.0,7.667e-05,2]
[394966998,1764223947208,-300.0,7.667e-05,2]
[394966999,1764223947224,-300.0,7.667e-05,2]
[394967000,1764223947239,-300.0,7.667e-05,2]
[394967001,1764223947256,-300.0,7.667e-05,2]
[394967002,1764223947276,-300.0,7.667e-05,2]
[394967003,1764223947291,-300.0,7.667e-05,2]
[394967004,1764223947306,-300.0,7.667e-05,2]
[394967005,1764223947321,-300.0,7.667e-05,2]
[394967006,1764223947335,-300.0,7.667e-05,2]
[394967007,1764223947350,-300.0,7.667e-05,2]
[394967008,1764223947365,-300.0,7.667e-05,2]
[394967009,1764223947381,-300.0,7.667e-05,2]
[394967010,1764223947398,-300.0,7.667e-05,2]
[394967011,1764223947413,-300.0,7.667e-05,2]
[394967012,1764223947428,-180.92257696,7.667e-05,2]
[394967013,1764223947441,-151.0,7.667e-05,2]
[394967014,1764223947455,-500.0,7.667e-05,2]
[394967015,1764223947469,-151.0,7.667e-05,2]
[394967016,1764223947483,-151.0,7.667e-05,2]
[394967017,1764223947497,-151.0,7.667e-05,2]
[394967018,1764223947512,-500.0,7.667e-05,2]
[394967019,1764223947527,-151.0,7.667e-05,2]
[394967020,1764223947542,-151.0,7.804e-05,2]
[394967021,1764223947557,-500.0,7.804e-05,2]
[394967022,1764223947571,-460.29022101,7.804e-05,2]
[394967023,1764223947586,-151.0,7.941e-05,2]
[394967024,1764223947599,-500.0,7.941e-05,2]
[394967025,1764223947614,-285.51809138,8.078e-05,2]
[394967026,1764223947628,-503.3858294,8.078e-05,2]
[394967027,1764223947641,-151.0,8.078e-05,2]
[394967028,1764223947654,-151.0,8.078e-05,2]
[394967029,1764223947668,-500.0,8.078e-05,2]
[394967030,1764223947685,-151.0,8.078e-05,2]
[394967031,1764223947699,-151.0,8.078e-05,2]
[394967032,1764223947714,-206.68240134,8.13e-05,2]
[394967033,1764223947726,-500.0,8.13e-05,2]
[394967034,1764223947739,-500.0,8.13e-05,2]
[394967035,1764223947753,-500.0,8.13e-05,2]
[394967036,1764223947766,-500.0,8.13e-05,2]
[394967037,1764223947780,-500.0,8.13e-05,2]
[394967038,1764223947793,-500.0,8.13e-05,2]
[394967039,1764223947807,-500.0,8.13e-05,2]
[394967040,1764223947820,-450.24275997,8.13e-05,2]
[394967041,1764223947833,-309.71918636,8.13e-05,2]
[394967042,1764223947847,-500.0,8.13e-05,2]
[394967043,1764223947862,-511.52251541,8.13e-05,2]
[394967044,1764223947876,-500.46485859,8.13e-05,2]
[394967045,1764223947891,-151.0,8.215e-05,2]
[394967046,1764223947904,-151.0,8.215e-05,2]
[394967047,1764223947918,-500.0,8.215e-05,2]
[394967048,1764223947932,-151.0,8.215e-05,2]
[394967049,1764223947946,-155.03199494,8.215e-05,2]
[394967050,1764223947961,-500.0,8.219e-05,2]
[394967051,1764223947975,-153.99149039,8.219e-05,2]
[394967052,1764223947989,-501.447135,8.219e-05,2]
[394967053,1764223948003,-501.447135,8.219e-05,2]
[394967054,1764223948023,-501.447135,8.219e-05,2]
[394967055,1764223948038,-501.447135,8.219e-05,2]
[394967056,1764223948052,-501.447135,8.219e-05,2]
[394967057,1764223948065,-501.447135,8.219e-05,2]
[394967058,1764223948081,-501.447135,8.219e-05,2]
[394967059,1764223948095,-501.447135,8.219e-05,2]
[394967060,1764223948111,-501.447135,8.219e-05,2]
[394967061,1764223948126,-501.447135,8.219e-05,2]
[394967062,1764223948141,-501.447135,8.219e-05,2]
[394967063,1764223948156,-501.447135,8.219e-05,2]
[394967064,1764223948170,-501.447135,8.219e-05,2]
[394967065,1764223948183,-501.447135,8.219e-05,2]
[394967066,1764223948196,-501.447135,8.219e-05,2]
[394967067,1764223948211,-501.447135,8.219e-05,2]
[394967068,1764223948225,-501.447135,8.219e-05,2]
[394967069,1764223948240,-501.447135,8.219e-05,2]
[394967070,1764223948254,-501.447135,8.219e-05,2]
[394967071,1764223948269,-501.447132,8.219e-05,2]
[394967072,1764223948282,-503.4114239,8.252e-05,2]
[394967073,1764223948296,-11669.0043482,8.301e-05,2]
[394967074,1764223948311,-151.0,8.352e-05,2]
[394967075,1764223948325,-151.0,8.352e-05,2]
[394967076,1764223948340,-500.0,8.352e-05,2]
[394967077,1764223948355,-151.0,8.352e-05,2]
[394967078,1764223948368,-357.35662424,8.382e-05,2]
[394967079,1764223948383,-500.0,8.382e-05,2]
[394967080,1764223948396,-500.0,8.382e-05,2]
[394967081,1764223948411,-507.07287426,8.382e-05,2]
[394967082,1764223948425,-3458.26851234,8.459e-05,2]
[394967083,1764223948440,-151.0,8.489e-05,2]
[394967084,1764223948453,-200.23495555,8.489e-05,2]
[394967085,1764223948466,-500.0,8.489e-05,2]
[394967086,1764223948480,-199.9198709,8.489e-05,2]
[394967087,1764223948493,-2603.706809,8.569e-05,2]
[394967088,1764223948507,-229.93025523,8.626e-05,2]
[394967089,1764223948521,-500.0,8.626e-05,2]
[394967090,1764223948536,-519.41318722,8.678e-05,2]
[394967091,1764223948549,-500.0,8.678e-05,2]
[394967092,1764223948563,-526.02034115,8.678e-05,2]
[394967093,1764223948579,-500.0,8.678e-05,2]
[394967094,1764223948594,-1000.0,8.678e-05,2]
[394967095,1764223948609,-576.18554739,8.68e-05,2]
[394967096,1764223948623,-500.0,8.763e-05,2]
[394967097,1764223948637,-436.66361461,8.817e-05,2]
[394967098,1764223948650,-627.33337515,8.9e-05,2]
[394967099,1764223948663,-1082.51869435,8.93e-05,2]
[394967100,1764223948677,-513.04524053,8.93e-05,2]
[394967101,1764223948690,-357.0865056,8.995e-05,2]
[394967102,1764223948704,-150.244,9.086e-05,2]
[394967103,1764223948718,-1802.888,9.086e-05,2]
[394967104,1764223948733,-630.0,9.086e-05,2]
[394967105,1764223948747,-990.0,9.086e-05,2]
[394967106,1764223948761,-1500.0,9.226e-05,2]
[394967107,1764223948775,-2000.0,9.774e-05,2]
[394967108,1764223948789,-308.7081521,9.786e-05,2]
[394967109,1764223948803,-209.40437684,0.0001,2]
[394967110,1764223948817,-2500.0,0.00010322,2]
[394967111,1764223948831,-217.15233878,0.00010548,2]
[394967112,1764223948844,-595.6940495,0.00010608,2]
[394967113,1764223948857,-749.8729451,0.00010608,2]
[394967114,1764223948871,-3000.0,0.0001087,2]
[394967115,1764223948885,-562.48,0.00010958,2]
[394967116,1764223948899,-999.0,0.00010959,2]
[394967117,1764223948913,-270.331737,0.00010959,2]
[394967118,1764223948928,-500.0,0.00010959,2]
[394967119,1764223948941,-500.0,0.00010959,2]
[394967120,1764223948955,-500.0,0.00010959,2]
[394967121,1764223948970,-500.0,0.00010959,2]
[394967122,1764223948984,-500.0,0.00010959,2]
[394967123,1764223948997,-500.0,0.00010959,2]
[394967124,1764223949011,-500.0,0.00010959,2]
[394967125,1764223949025,-500.0,0.00010959,2]
[394967126,1764223949038,-500.0,0.00010959,2]
[394967127,1764223949054,-500.0,0.00010959,2]
[394967128,1764223949068,-500.0,0.00010959,2]
[394967129,1764223949089,-444.21278725,0.00010959,2]
[394967130,1764223949105,-500.0,0.00010959,2]
[394967131,1764223949126,-400.0,0.00010959,2]
[394967132,1764223949139,-500.0,0.00010959,2]
[394967133,1764223949154,-500.0,0.00010959,2]
[394967134,1764223949172,-500.0,0.00010959,2]
[394967135,1764223949186,-500.0,0.00010959,2]
[394967136,1764223949198,-500.0,0.00010959,2]
[394967137,1764223949214,-500.0,0.00010959,2]
[394967138,1764223949229,-500.0,0.00010959,2]
[394967139,1764223949243,-500.0,0.00010959,2]
[394967140,1764223949258,-500.0,0.00010959,2]
[394967141,1764223949276,-500.0,0.00010959,2]
[394967142,1764223949290,-500.0,0.00010959,2]
[394967143,1764223949304,-500.0,0.00010959,2]
[394967144,1764223949319,-500.0,0.00010959,2]
[394967145,1764223949333,-500.0,0.00010959,2]
[394967146,1764223949353,-500.0,0.00010959,2]
[394967147,1764223949367,-500.0,0.00010959,2]
[394967148,1764223949381,-200.0,0.00010959,2]
[394967149,1764223949723,-500.0,0.00010959,2]
[394967150,1764223949733,-500.0,0.00010959,2]
[394967151,1764223949747,-500.0,0.00010959,2]
[394967152,1764223949756,-500.0,0.00010959,2]
[394967153,1764223949765,-500.0,0.00010959,2]
[394967154,1764223949775,-500.0,0.00010959,2]
[394967155,1764223949785,-500.0,0.00010959,2]
[394967156,1764223949795,-500.0,0.00010959,2]
[394967157,1764223949806,-500.0,0.00010959,2]
[394967158,1764223949816,-500.0,0.00010959,2]
[394967159,1764223949827,-500.0,0.00010959,2]
[394967160,1764223949836,-500.0,0.00010959,2]
[394967161,1764223949846,-500.0,0.00010959,2]
[394967162,1764223949857,-500.0,0.00010959,2]
[394967163,1764223949867,-500.0,0.00010959,2]
[394967164,1764223949876,-253.02706702,0.00010959,2]
[394967165,1764223949885,-500.0,0.00010959,2]
[394967166,1764223949895,-500.0,0.00010959,2]
[394967167,1764223949906,-500.0,0.00010959,2]
[394967168,1764223949915,-500.0,0.00010959,2]
[394967169,1764223949924,-500.0,0.00010959,2]
[394967170,1764223949934,-500.0,0.00010959,2]
[394967171,1764223949943,-500.0,0.00010959,2]
[394967172,1764223949953,-500.0,0.00010959,2]
[394967173,1764223949963,-500.0,0.00010959,2]
[394967174,1764223949972,-411.55732849,0.00010995,2]
[394967175,1764223949982,-327.91606551,0.00011005,2]
[394967176,1764223949991,-225.18697532,0.00011096,2]
[394967177,1764223950001,-3500.0,0.00011418,2]
[394967178,1764223950011,-233.51889341,0.00011644,2]
[394967179,1764223950020,-4000.0,0.00011966,2]
[394967180,1764223950030,-11669.82924374,0.00012,3]
[394967181,1764223950039,-184.26002904,0.00012034,2]
[394967182,1764223950049,-258.361492,0.00012034,2]
[394967183,1764223950059,-562.48,0.00012054,2]
[394967184,1764223950068,-500.0,0.00012083,2]
[394967185,1764223950078,-630.0,0.00012086,2]
[394967186,1764223950088,-990.0,0.00012086,2]
[394967187,1764223950097,-242.15909246,0.00012192,2]
[394967188,1764223950107,-500.0,0.00012407,2]
[394967189,1764223950117,-500.0,0.00012407,2]
[394967190,1764223950126,-4500.0,0.00012514,2]
[394967191,1764223950135,-333.0,0.00012527,2]
[394967192,1764223950147,-333.0,0.00012527,2]
[394967193,1764223950157,-333.0,0.00012527,2]
[394967194,1764223950166,-333.0,0.00012527,2]
[394967195,1764223950175,-333.0,0.00012527,2]
[394967196,1764223950184,-333.0,0.00012527,2]
[394967197,1764223950194,-333.0,0.00012527,2]
[394967198,1764223950203,-333.0,0.00012527,2]
[394967199,1764223950212,-333.0,0.00012527,2]
[394967200,1764223950222,-333.0,0.00012527,2]
[394967201,1764223950232,-333.0,0.00012527,2]
[394967202,1764223950241,-333.0,0.00012527,2]
[394967203,1764223950251,-333.0,0.00012527,2]
[394967204,1764223950261,-333.0,0.00012527,2]
[394967205,1764223950276,-333.0,0.00012527,2]
[394967206,1764223950286,-333.0,0.00012527,2]
[394967207,1764223950295,-333.0,0.00012527,2]
[394967208,1764223950306,-333.0,0.00012527,2]
[394967209,1764223950316,-333.0,0.00012527,2]
[394967210,1764223950325,-251.11897888,0.0001274,2]
[394967211,1764223950335,-160.0,0.000129,2]
[394967212,1764223950347,-160.0,0.000129,2]
[394967213,1764223950356,-160.0,0.000129,2]
[394967214,1764223950366,-9427.03861725,0.000129,2]
[394967215,1764223950375,-9427.03861719,0.000129,2]
[394967216,1764223950384,-500.0,0.00012955,2]
[394967217,1764223950393,-176.41581255,0.00012983,2]
[394967218,1764223950403,-162.0,0.00012983,2]
[394967219,1764223950412,-162.0,0.00012983,2]
[394967220,1764223950422,-172.0,0.00012983,2]
[394967221,1764223950431,-162.0,0.00012983,2]
[394967222,1764223950440,-162.0,0.00012983,2]
[394967223,1764223950449,-162.0,0.00012983,2]
[394967224,1764223950459,-162.0,0.00012983,2]
[394967225,1764223950468,-166.63820667,0.00012983,2]
[394967226,1764223950478,-333.0,0.00012983,2]
[394967227,1764223950487,-333.0,0.00012983,2]
[394967228,1764223950496,-333.0,0.00012983,2]
[394967229,1764223950505,-333.0,0.00012983,2]
[394967230,1764223950514,-333.0,0.00012983,2]
[394967231,1764223950523,-333.0,0.00012983,2]
[394967232,1764223950532,-333.0,0.00012983,2]
[394967233,1764223950541,-333.0,0.00012983,2]
[394967234,1764223950550,-333.0,0.00012983,2]
[394967235,1764223950559,-333.0,0.00012983,2]
[394967236,1764223950568,-333.0,0.00012983,2]
[394967237,1764223950578,-333.0,0.00012983,2]
[394967238,1764223950587,-333.0,0.00012983,2]
[394967239,1764223950596,-333.0,0.00012983,2]
[394967240,1764223950605,-333.0,0.00012983,2]
[394967241,1764223950614,-333.0,0.00012983,2]
[394967242,1764223950623,-333.0,0.00012983,2]
[394967243,1764223950632,-333.0,0.00012983,2]
[394967244,1764223950641,-333.0,0.00012983,2]
[394967245,1764223950651,-333.0,0.00012983,2]
[394967246,1764223950660,-333.0,0.00012983,2]
[394967247,1764223950670,-333.0,0.00012983,2]
[394967248,1764223950679,-333.0,0.00012983,2]
[394967249,1764223950689,-333.0,0.00012983,2]
[394967250,1764223950698,-333.0,0.00012983,2]
[394967251,1764223950707,-333.0,0.00012983,2]
[394967252,1764223950717,-333.0,0.00012983,2]
[394967253,1764223950726,-333.0,0.00012983,2]
[394967254,1764223950736,-333.0,0.00012983,2]
[394967255,1764223950746,-333.0,0.00012983,2]
[394967256,1764223950755,-333.0,0.00012983,2]
[394967257,1764223950765,-333.0,0.00012983,2]
[394967258,1764223950776,-333.0,0.00012983,2]
[394967259,1764223950785,-333.0,0.00012983,2]
[394967260,1764223950794,-333.0,0.00012983,2]
[394967261,1764223950802,-333.0,0.00012983,2]
[394967262,1764223950812,-333.0,0.00012983,2]
[394967263,1764223950822,-333.0,0.00012983,2]
[394967264,1764223950831,-333.0,0.00012983,2]
[394967265,1764223950841,-333.0,0.00012983,2]
[394967266,1764223950850,-333.0,0.00012983,2]
[394967267,1764223950860,-177.14567998,0.00012983,2]
[394967268,1764223950870,-333.0,0.00012983,2]
[394967269,1764223950879,-166.0,0.00012983,2]
[394967270,1764223950889,-166.0,0.00012983,2]
[394967271,1764223950899,-166.0,0.00012983,2]
[394967272,1764223950908,-333.0,0.00012983,2]
[394967273,1764223950917,-166.0,0.00012983,2]
[394967274,1764223950927,-333.0,0.00012983,2]
[394967275,1764223950936,-166.0,0.00012983,2]
[394967276,1764223950946,-172.0,0.00012983,2]
[394967277,1764223950956,-284.37565089,0.00012983,2]
[394967278,1764223950965,-333.0,0.00012983,2]
[394967279,1764223950975,-333.0,0.00012983,2]
[394967280,1764223950984,-333.0,0.00012983,2]
[394967281,1764223950993,-174.0,0.00012983,2]
[394967282,1764223951002,-174.0,0.00012983,2]
[394967283,1764223951011,-175.5626929,0.00012983,2]
[394967284,1764223951021,-152.0,0.00012983,2]
[394967285,1764223951030,-152.0,0.00012983,2]
[394967286,1764223951040,-152.0,0.00012983,2]
[394967287,1764223951049,-152.0,0.00012983,2]
[394967288,1764223951058,-152.0,0.00012983,2]
[394967289,1764223951068,-152.0,0.00012983,2]
[394967290,1764223951079,-152.0,0.00012983,2]
[394967291,1764223951088,-152.0,0.00012983,2]
[394967292,1764223951097,-152.0,0.00012983,2]
[394967293,1764223951106,-152.0,0.00012983,2]
[394967294,1764223951115,-152.0,0.00012983,2]
[394967295,1764223951124,-152.0,0.00012983,2]
[394967296,1764223951133,-152.0,0.00012983,2]
[394967297,1764223951142,-152.0,0.00012983,2]
[394967298,1764223951151,-152.0,0.00012983,2]
[394967299,1764223951160,-152.0,0.00012983,2]
[394967300,1764223951169,-152.0,0.00012983,2]
[394967301,1764223951178,-152.0,0.00012983,2]
[394967302,1764223951188,-152.0,0.00012983,2]
[394967303,1764223951197,-152.0,0.00012983,2]
[394967304,1764223951207,-152.0,0.00012983,2]
[394967305,1764223951216,-152.0,0.00012983,2]
[394967306,1764223951226,-152.0,0.00012983,2]
[394967307,1764223951236,-152.0,0.00012983,2]
[394967308,1764223951246,-152.0,0.00012983,2]
[394967309,1764223951255,-152.0,0.00012983,2]
[394967310,1764223951269,-152.0,0.00012983,2]
[394967311,1764223951278,-152.0,0.00012983,2]
[394967312,1764223951287,-152.0,0.00012983,2]
[394967313,1764223951296,-152.0,0.00012983,2]
[394967314,1764223951307,-152.0,0.00012983,2]
[394967315,1764223951316,-152.0,0.00012983,2]
[394967316,1764223951326,-152.0,0.00012983,2]
[394967317,1764223951336,-152.0,0.00012983,2]
[394967318,1764223951345,-152.0,0.00012983,2]
[394967319,1764223951354,-152.0,0.00012983,2]
[394967320,1764223951363,-237.50174827,0.00012983,2]
[394967321,1764223951372,-466.02815138,0.00012995,2]
[394967322,1764223951381,-5000.0,0.00013062,2]
[394967323,1764223951390,-5888.0,0.00013114,2]
[394967324,1764223951398,-5888.0,0.00013131,2]
[394967325,1764223951407,-562.48,0.0001315,2]
[394967326,1764223951417,-5888.0,0.00013167,2]
[394967327,1764223951426,-5888.0,0.00013192,2]
[394967328,1764223951436,-353.54508592,0.00013276,2]
[394967329,1764223951448,-160.0,0.00013276,2]
[394967330,1764223951457,-260.4103811,0.00013288,2]
[394967331,1764223951466,-5888.0,0.00013333,2]
[394967332,1764223951476,-5888.0,0.00013356,2]
[394967333,1764223951485,-5888.0,0.00013361,2]
[394967334,1764223951495,-5888.0,0.00013407,2]
[394967335,1764223951504,-415.95745053,0.00013425,2]
[394967336,1764223951513,-558.25603336,0.00013448,2]
[394967337,1764223951522,-5888.0,0.00013478,2]
[394967338,1764223951532,-5888.0,0.00013485,2]
[394967339,1764223951541,-5888.0,0.00013514,2]
[394967340,1764223951550,-5888.0,0.00013545,2]
[394967341,1764223951559,-5171.10627307,0.00013609,2]
[394967342,1764223951568,-162.0,0.00013683,2]
[394967343,1764223951577,-166.0,0.00013683,2]
[394967344,1764223951586,-166.0,0.00013683,2]
[394967345,1764223951596,-166.0,0.00013683,2]
[394967346,1764223951605,-166.0,0.00013683,2]
[394967347,1764223951615,-166.0,0.00013683,2]
[394967348,1764223951624,-166.0,0.00013683,2]
[394967349,1764223951633,-166.0,0.00013683,2]
[394967350,1764223951642,-166.0,0.00013683,2]
[394967351,1764223951652,-333.0,0.00013683,2]
[394967352,1764223951661,-500.0,0.00013698,2]
[394967353,1764223951670,-500.0,0.00013698,2]
[394967354,1764223951679,-500.0,0.00013698,2]
[394967355,1764223951689,-628.22284074,0.00013698,2]
[394967356,1764223951698,-7000.0,0.00013699,2]
[394967357,1764223951709,-859.08412116,0.00013699,2]
[394967358,1764223951718,-3982.703285,0.00013699,2]
[394967359,1764223951727,-1500.0,0.00013699,2]
[394967360,1764223951736,-151.0,0.00013699,2]
[394967361,1764223951746,-151.0,0.00013699,2]
[394967362,1764223951755,-151.0,0.00013699,2]
[394967363,1764223951764,-1000.0,0.00013699,2]
[394967364,1764223951773,-985.696443,0.00013699,2]
[394967365,1764223951782,-985.696443,0.00013699,2]
[394967366,1764223951791,-985.696443,0.00013699,2]
[394967367,1764223951800,-985.696443,0.00013699,2]
[394967368,1764223951808,-985.696443,0.00013699,2]
[394967369,1764223951817,-985.696443,0.00013699,2]
[394967370,1764223951827,-985.696443,0.00013699,2]
[394967371,1764223951836,-985.696443,0.00013699,2]
[394967372,1764223951845,-985.696443,0.00013699,2]
[394967373,1764223951853,-985.696443,0.00013699,2]
[394967374,1764223951863,-985.696443,0.00013699,2]
[394967375,1764223951871,-985.696443,0.00013699,2]
[394967376,1764223951881,-985.696443,0.00013699,2]
[394967377,1764223951890,-985.696443,0.00013699,2]
[394967378,1764223951899,-985.696443,0.00013699,2]
[394967379,1764223951908,-985.696443,0.00013699,2]
[394967380,1764223951917,-985.696443,0.00013699,2]
[394967381,1764223951926,-985.696443,0.00013699,2]
[394967382,1764223951935,-985.696443,0.00013699,2]
[394967383,1764223951943,-985.696439,0.00013699,2]
[394967384,1764223951953,-500.0,0.00013699,2]
[394967385,1764223951962,-160.0,0.00013699,2]
[394967386,1764223951971,-5888.0,0.00013733,2]
[394967387,1764223951980,-150.0,0.00013733,2]
[394967388,1764223951989,-5888.0,0.0001374,2]
[394967389,1764223951999,-5888.0,0.0001374,2]
[394967390,1764223952008,-5888.0,0.00013748,2]
[394967391,1764223952018,-5888.0,0.00013831,2]
[394967392,1764223952027,-4483.20307355,0.00013836,2]
[394967393,1764223952036,-270.0455652,0.00013836,2]
[394967394,1764223952045,-529.92,0.00013973,2]
[394967395,1764223952054,-5888.0,0.00013997,2]
[394967396,1764223952063,-281.0,0.00014,2]
[394967397,1764223952073,-5888.0,0.00014002,2]
[394967398,1764223952082,-5888.0,0.00014044,2]
[394967399,1764223952091,-436.66361461,0.00014051,2]
[394967400,1764223952099,-500.0,0.00014052,2]
[394967401,1764223952109,-500.0,0.00014052,2]
[394967402,1764223952118,-500.0,0.00014052,2]
[394967403,1764223952127,-500.0,0.00014052,2]
[394967404,1764223952136,-500.0,0.00014052,2]
[394967405,1764223952145,-500.0,0.00014052,2]
[394967406,1764223952154,-500.0,0.00014052,2]
[394967407,1764223952163,-500.0,0.00014052,2]
[394967408,1764223952171,-500.0,0.00014052,2]
[394967409,1764223952180,-500.0,0.00014052,2]
[394967410,1764223952190,-500.0,0.00014052,2]
[394967411,1764223952199,-500.0,0.00014052,2]
[394967412,1764223952208,-500.0,0.00014052,2]
[394967413,1764223952217,-306.45237372,0.00014052,2]
[394967414,1764223952226,-500.0,0.00014052,2]
[394967415,1764223952235,-158.85638959,0.00014052,2]
[394967416,1764223952244,-500.0,0.00014052,2]
[394967417,1764223952253,-500.0,0.00014052,2]
[394967418,1764223952267,-500.0,0.00014052,2]
[394967419,1764223952276,-500.0,0.00014052,2]
[394967420,1764223952285,-500.0,0.00014052,2]
[394967421,1764223952294,-500.0,0.00014052,2]
[394967422,1764223952304,-500.0,0.00014052,2]
[394967423,1764223952313,-172.74000344,0.00014052,2]
[394967424,1764223952322,-500.0,0.00014052,2]
[394967425,1764223952331,-500.0,0.00014052,2]
[394967426,1764223952340,-500.0,0.00014052,2]
[394967427,1764223952349,-500.0,0.00014052,2]
[394967428,1764223952358,-500.0,0.00014052,2]
[394967429,1764223952367,-500.0,0.00014052,2]
[394967430,1764223952377,-500.0,0.00014052,2]
[394967431,1764223952386,-500.0,0.00014052,2]
[394967432,1764223952395,-500.0,0.00014052,2]
[394967433,1764223952404,-500.0,0.00014052,2]
[394967434,1764223952412,-500.0,0.00014052,2]
[394967435,1764223952421,-500.0,0.00014052,2]
[394967436,1764223952430,-500.0,0.00014052,2]
[394967437,1764223952439,-158.24455387,0.00014052,2]
[394967438,1764223952448,-234.66628509,0.00014052,2]
[394967439,1764223952457,-500.0,0.00014052,2]
[394967440,1764223952467,-157.57251025,0.00014052,2]
[394967441,1764223952476,-500.0,0.00014052,2]
[394967442,1764223952485,-500.0,0.00014052,2]
[394967443,1764223952495,-500.0,0.00014052,2]